bitfinex-derivatives/quotes_BTCF0:USTF0_20260207
["timestamp","ask_amount","ask_price","bid_price","bid_amount"]
[1770491040255,0.01156363,69524.0,69502.0,0.0144]
[1770491040665,0.01156363,69524.0,69494.0,0.01077515]
[1770491040861,0.01156363,69524.0,69498.0,0.01077515]
[1770491041858,0.01156363,69524.0,69500.0,0.014401]
[1770491045151,0.01156363,69524.0,69505.0,0.0144]
[1770491045555,0.01156363,69524.0,69498.0,0.01077515]
[1770491046460,0.01156363,69524.0,69500.0,0.014401]
[1770491046761,0.00071427,69541.0,69486.0,0.16806287]
[1770491046762,0.0107442,69518.0,69495.0,0.014402]
[1770491047854,0.0107442,69518.0,69490.0,0.01158234]
[1770491049265,0.0107442,69518.0,69495.0,0.014402]
[1770491049659,0.0107442,69516.0,69491.0,0.014402]
[1770491050562,0.0251422,69515.0,69491.0,0.014402]
[1770491050763,0.01092133,69514.0,69491.0,0.014402]
[1770491050962,0.01092133,69514.0,69494.0,0.014402]
[1770491051954,0.01092133,69514.0,69487.0,0.01057677]
[1770491052161,0.01092133,69514.0,69488.0,0.22682173]
[1770491052361,0.01092133,69514.0,69489.0,0.21624496]
[1770491052560,0.01092133,69514.0,69490.0,0.21624496]
[1770491052761,0.01092133,69514.0,69491.0,0.21624496]
[1770491053069,0.01092133,69514.0,69489.0,0.01057677]
[1770491053266,0.01092133,69514.0,69490.0,0.21624488]
[1770491053464,0.01092133,69514.0,69493.0,0.014402]
[1770491053863,0.01092133,69514.0,69496.0,0.014401]
[1770491054061,0.02531733,69521.0,69499.0,0.014401]
[1770491055164,0.01092133,69533.0,69508.0,0.01057677]
[1770491055360,0.014392,69540.0,69516.0,0.014397]
[1770491055562,0.01092133,69536.0,69516.0,0.014397]
[1770491056864,0.01092133,69536.0,69514.0,0.16806287]
[1770491057064,0.01092133,69536.0,69519.0,0.014397]
[1770491057263,0.00071427,69541.0,69515.0,0.01057677]
[1770491057463,0.014392,69540.0,69518.0,0.01057677]
[1770491057662,0.00071427,69541.0,69518.0,0.01057677]
[1770491058062,0.00071427,69541.0,69518.0,0.38871823]
[1770491058262,0.00071427,69541.0,69521.0,0.01057677]
[1770491059068,0.00071427,69541.0,69530.0,0.014394]
[1770491059259,0.00071427,69541.0,69533.0,0.014394]
[1770491059464,0.02531133,69553.0,69526.0,0.01057677]
[1770491059778,0.01092133,69553.0,69532.0,0.01057677]
[1770491060068,0.01092133,69553.0,69532.0,0.00062101]
[1770491060265,0.01092133,69553.0,69533.0,0.00062101]
[1770491060766,0.01144748,69562.0,69533.0,0.00062101]
[1770491060968,0.01144748,69562.0,69544.0,0.014391]
[1770491061268,0.01144748,69566.0,69539.0,0.21399552]
[1770491061469,0.01144748,69562.0,69541.0,0.014392]
[1770491061668,0.01144748,69562.0,69539.0,0.21399552]
[1770491062064,0.01144748,69562.0,69544.0,0.014391]
[1770491063770,0.01144748,69562.0,69539.0,0.22838752]
[1770491063975,0.01144748,69562.0,69539.0,0.014392]
[1770491065069,0.01144748,69562.0,69542.0,0.014392]
[1770491065377,0.01144748,69562.0,69537.0,0.00065754]
[1770491065674,0.01143526,69561.0,69541.0,0.014392]
[1770491067071,0.01143526,69561.0,69538.0,0.014393]
[1770491069267,0.01143526,69561.0,69541.0,0.014392]
[1770491069571,0.01143526,69561.0,69537.0,0.00065754]
[1770491070469,0.01143526,69561.0,69541.0,0.014392]
[1770491074472,0.01143526,69561.0,69537.0,0.00065754]
[1770491075273,0.01143526,69561.0,69540.0,0.014392]
[1770491076375,0.014384,69581.0,69530.0,0.21399552]
[1770491076376,0.01160387,69559.0,69538.0,0.014393]
[1770491076984,0.01160387,69559.0,69540.0,0.014392]
[1770491077173,0.014389,69558.0,69538.0,0.00058845]
[1770491077375,0.01160387,69557.0,69534.0,0.014394]
[1770491077575,0.01160387,69549.0,69526.0,0.014395]
[1770491078378,0.01160387,69549.0,69526.0,0.01498345]
[1770491078976,0.01160387,69557.0,69529.0,0.00061093]
[1770491079176,0.01160387,69557.0,69537.0,0.01500393]
[1770491079377,0.01160387,69557.0,69538.0,0.00061093]
[1770491080277,0.01160387,69557.0,69538.0,0.01500393]
[1770491080482,0.01160387,69557.0,69535.0,0.014393]
[1770491080779,0.01160387,69545.0,69529.0,0.014395]
[1770491081884,0.01160387,69557.0,69520.0,0.14508991]
[1770491082082,0.02605266,69572.0,69531.0,0.014394]
[1770491082281,0.01166666,69571.0,69547.0,0.014391]
[1770491083683,0.01166666,69571.0,69533.0,0.1139982]
[1770491083888,0.01166666,69571.0,69549.0,0.01439]
[1770491084785,0.014384,69581.0,69535.0,0.1283912]
[1770491085096,0.01169348,69580.0,69562.0,0.014388]
[1770491085389,0.01169348,69580.0,69548.0,0.014391]
[1770491085985,0.01169348,69580.0,69559.0,0.014388]
[1770491086589,0.01169348,69580.0,69562.0,0.014388]
[1770491087089,0.01169348,69580.0,69547.0,0.1139982]
[1770491087290,0.01169348,69580.0,69541.0,0.22838752]
[1770491087291,0.01169348,69580.0,69564.0,0.014387]
[1770491087491,0.01205255,69588.0,69566.0,0.014387]
[1770491087689,0.01205255,69588.0,69569.0,0.014386]
[1770491088884,0.01205255,69588.0,69565.0,0.014387]
[1770491089289,0.0120496,69587.0,69565.0,0.014387]
[1770491091285,0.0120496,69587.0,69557.0,0.50239224]
[1770491091286,0.01247328,69585.0,69559.0,0.014388]
[1770491091690,0.01247328,69585.0,69564.0,0.29078026]
[1770491092487,0.01247328,69582.0,69564.0,0.29078026]
[1770491093596,0.01247328,69582.0,69559.0,0.014388]
[1770491094196,0.014384,69581.0,69564.0,0.28106094]
[1770491094498,0.01245944,69580.0,69559.0,0.014388]
[1770491094999,0.01245944,69580.0,69561.0,0.014388]
[1770491097995,0.01246238,69587.0,69566.0,0.014387]
[1770491098991,0.02689902,69592.0,69569.0,0.014386]
[1770491099196,0.014382,69589.0,69566.0,0.014387]
[1770491100298,0.014384,69580.0,69564.0,0.28347335]
[1770491100505,0.01251702,69576.0,69557.0,0.28839672]
[1770491100697,0.01249824,69573.0,69557.0,0.28839672]
[1770491101292,0.01249824,69571.0,69550.0,0.01439]
[1770491101506,0.014388,69562.0,69540.0,0.17112999]
[1770491101809,0.049,69545.0,69539.0,0.30061872]
[1770491101995,0.049,69545.0,69539.0,0.28622672]
[1770491102195,0.014389,69558.0,69539.0,0.28622672]
[1770491102402,0.02688724,69558.0,69539.0,0.28622672]
[1770491103603,0.0124518,69555.0,69531.0,0.014394]
[1770491103801,0.0124518,69551.0,69532.0,0.014394]
[1770491107708,0.01249407,69565.0,69544.0,0.014391]
[1770491108604,0.01249407,69565.0,69538.0,0.29386559]
[1770491108605,0.01249407,69565.0,69547.0,0.014391]
[1770491108806,0.01248914,69573.0,69538.0,0.29386559]
[1770491109305,0.014386,69572.0,69538.0,0.29386559]
[1770491109501,0.014386,69569.0,69544.0,0.014391]
[1770491110310,0.01248914,69572.0,69551.0,0.01439]
[1770491112015,0.01248914,69572.0,69540.0,0.17112999]
[1770491112309,0.01248914,69572.0,69551.0,0.01439]
[1770491113305,0.01248731,69570.0,69547.0,0.014391]
[1770491113505,0.01248731,69570.0,69543.0,0.014392]
[1770491113706,0.01248731,69568.0,69546.0,0.014391]
[1770491114212,0.014386,69573.0,69549.0,0.01439]
[1770491114409,0.02687331,69573.0,69549.0,0.01439]
[1770491114604,0.01248042,69572.0,69549.0,0.01439]
[1770491115317,0.01248042,69572.0,69552.0,0.01439]
[1770491115813,0.01248042,69572.0,69549.0,0.014391]
[1770491116113,0.014386,69571.0,69549.0,0.014391]
[1770491116714,0.01248042,69572.0,69552.0,0.01439]
[1770491121313,0.014385,69575.0,69552.0,0.01439]
[1770491121517,0.01249016,69586.0,69550.0,0.14494518]
[1770491122016,0.01249016,69586.0,69563.0,0.014388]
[1770491122314,0.01249016,69586.0,69550.0,0.14494518]
[1770491122510,0.01249016,69586.0,69551.0,0.21603497]
[1770491122717,0.01249016,69586.0,69550.0,0.14494518]
[1770491122917,0.01249016,69586.0,69551.0,0.21603497]
[1770491123107,0.01249016,69586.0,69550.0,0.14494518]
[1770491123309,0.01249016,69586.0,69551.0,0.21603497]
[1770491123509,0.01249016,69586.0,69550.0,0.14494518]
[1770491123714,0.01249016,69586.0,69564.0,0.014387]
[1770491124116,0.01249016,69586.0,69550.0,0.14494518]
[1770491124317,0.01249016,69586.0,69562.0,0.014388]
[1770491125206,0.01254761,69584.0,69558.0,0.014388]
[1770491125617,0.01254761,69584.0,69561.0,0.014388]
[1770491125821,0.01254761,69584.0,69564.0,0.014387]
[1770491126205,0.01254761,69584.0,69547.0,0.17112999]
[1770491126411,0.01254761,69584.0,69562.0,0.014388]
[1770491128725,0.01248194,69582.0,69558.0,0.014389]
[1770491129421,0.01248194,69582.0,69560.0,0.014388]
[1770491130125,0.01248194,69582.0,69563.0,0.014388]
[1770491130519,0.01248194,69582.0,69565.0,0.014387]
[1770491130823,0.01250355,69588.0,69572.0,0.014386]
[1770491131123,0.01250355,69594.0,69549.0,0.014391]
[1770491131324,0.01250355,69594.0,69550.0,0.28796258]
[1770491131625,0.01250355,69594.0,69560.0,0.014388]
[1770491132322,0.01250355,69594.0,69574.0,0.014385]
[1770491132512,0.01250355,69594.0,69553.0,0.01439]
[1770491132717,0.01250355,69594.0,69576.0,0.014385]
[1770491135026,0.01247563,69601.0,69580.0,0.014384]
[1770491135223,0.01247563,69601.0,69583.0,0.014383]
[1770491135826,0.01247563,69601.0,69562.0,0.014388]
[1770491136024,0.01247563,69601.0,69580.0,0.014384]
[1770491136226,0.01247563,69601.0,69582.0,0.014384]
[1770491137330,0.01247563,69601.0,69586.0,0.014383]
[1770491137633,0.014378,69609.0,69588.0,0.014382]
[1770491137634,0.01248006,69609.0,69588.0,0.014382]
[1770491137928,0.01248006,69609.0,69587.0,0.014383]
[1770491138224,0.01248006,69607.0,69572.0,0.18551599]
[1770491138429,0.01248006,69607.0,69584.0,0.014383]
[1770491138630,0.01248006,69607.0,69587.0,0.014383]
[1770491139529,0.01248006,69607.0,69580.0,0.014384]
[1770491139731,0.01248006,69607.0,69592.0,0.014382]
[1770491139930,0.01247109,69615.0,69592.0,0.014382]
[1770491141226,0.01247109,69615.0,69595.0,0.014381]
[1770491141826,0.01247109,69615.0,69591.0,0.014382]
[1770491142026,0.01246811,69608.0,69581.0,0.014384]
[1770491142423,0.01246811,69606.0,69584.0,0.014383]
[1770491143431,0.01246811,69606.0,69574.0,0.17112999]
[1770491143619,0.01246811,69606.0,69575.0,0.21595485]
[1770491143822,0.01246811,69606.0,69576.0,0.21595485]
[1770491144027,0.01246811,69606.0,69577.0,0.21595485]
[1770491144224,0.01246811,69606.0,69574.0,0.17112999]
[1770491144425,0.01246811,69606.0,69575.0,0.21595485]
[1770491144631,0.01246811,69606.0,69587.0,0.014383]
[1770491144932,0.01246811,69606.0,69584.0,0.014383]
[1770491145828,0.01246811,69606.0,69580.0,0.014384]
[1770491147029,0.01265889,69605.0,69582.0,0.014384]
[1770491149043,0.01261629,69593.0,69568.0,0.014386]
[1770491149734,0.01261629,69591.0,69568.0,0.014386]
[1770491150240,0.01261629,69591.0,69559.0,0.17112999]
[1770491150542,0.01261629,69591.0,69560.0,0.21599848]
[1770491150740,0.01261629,69591.0,69561.0,0.21599848]
[1770491150945,0.01261629,69591.0,69562.0,0.21599848]
[1770491151143,0.01261629,69591.0,69563.0,0.21599908]
[1770491151445,0.01261629,69591.0,69562.0,0.11405308]
[1770491151634,0.01261868,69589.0,69566.0,0.014387]
[1770491152337,0.014382,69588.0,69566.0,0.014387]
[1770491152537,0.01261868,69587.0,69566.0,0.014387]
[1770491156340,0.02700168,69587.0,69563.0,0.014388]
[1770491156543,0.01262372,69586.0,69565.0,0.014387]
[1770491156854,0.01262372,69586.0,69567.0,0.014387]
[1770491158742,0.01263418,69593.0,69565.0,0.11405308]
[1770491158943,0.014381,69597.0,69567.0,0.11405308]
[1770491159146,0.014381,69597.0,69568.0,0.33005322]
[1770491159337,0.014381,69597.0,69568.0,0.11405308]
[1770491159544,0.014381,69597.0,69569.0,0.33004887]
[1770491159743,0.014381,69597.0,69568.0,0.11405308]
[1770491160550,0.014381,69597.0,69574.0,0.014385]
[1770491161850,0.01256726,69582.0,69564.0,0.17112999]
[1770491162047,0.01256726,69582.0,69559.0,0.11405308]
[1770491162240,0.01256726,69579.0,69559.0,0.12844108]
[1770491162444,0.01256726,69579.0,69559.0,0.11405308]
[1770491163556,0.01256726,69579.0,69563.0,0.014387]
[1770491164062,0.01256726,69579.0,69556.0,0.11405308]
[1770491164270,0.01256882,69574.0,69553.0,0.11405308]
[1770491164462,0.01256882,69574.0,69552.0,0.12844308]
[1770491164760,0.01256882,69574.0,69552.0,0.01439]
[1770491167765,0.01256882,69574.0,69542.0,0.014392]
[1770491168065,0.014381,69595.0,69558.0,0.014388]
[1770491168066,0.014383,69584.0,69558.0,0.014388]
[1770491168270,0.014381,69595.0,69558.0,0.014388]
[1770491168271,0.014384,69582.0,69558.0,0.014388]
[1770491168459,0.01256121,69581.0,69558.0,0.014388]
[1770491171665,0.02699163,69591.0,69567.0,0.014387]
[1770491172165,0.01260963,69590.0,69552.0,0.01439]
[1770491172372,0.01260963,69590.0,69569.0,0.014386]
[1770491173869,0.014381,69596.0,69572.0,0.014386]
[1770491174069,0.02698379,69596.0,69572.0,0.014386]
[1770491174273,0.02698379,69596.0,69574.0,0.014385]
[1770491174866,0.01260213,69625.0,69586.0,0.014383]
[1770491175165,0.01260213,69610.0,69586.0,0.014383]
[1770491175469,0.01260213,69610.0,69591.0,0.014382]
[1770491175769,0.01260213,69617.0,69593.0,0.014381]
[1770491180172,0.01260213,69617.0,69596.0,0.014381]
[1770491181474,0.01260478,69625.0,69588.0,0.014382]
[1770491181776,0.01260478,69625.0,69602.0,0.014379]
[1770491182476,0.01260478,69625.0,69605.0,0.014379]
[1770491183381,0.01260478,69625.0,69608.0,0.014378]
[1770491184269,0.01263022,69634.0,69611.0,0.014378]
[1770491184562,0.01263022,69634.0,69595.0,0.11405308]
[1770491184773,0.01262457,69631.0,69603.0,0.014379]
[1770491185578,0.0002,69661.0,69589.0,0.014382]
[1770491185579,0.01262457,69626.0,69599.0,0.01438]
[1770491187366,0.01258822,69624.0,69599.0,0.01438]
[1770491188476,0.01258822,69624.0,69601.0,0.01438]
[1770491189175,0.01261935,69636.0,69585.0,0.11405308]
[1770491189384,0.01261935,69629.0,69607.0,0.014378]
[1770491190573,0.01261935,69629.0,69609.0,0.014378]
[1770491192579,0.01258438,69636.0,69613.0,0.014377]
[1770491192980,0.01258438,69636.0,69619.0,0.29098623]
[1770491193371,0.01258438,69636.0,69619.0,0.30536223]
[1770491194175,0.01273234,69643.0,69619.0,0.29098623]
[1770491194372,0.01273234,69641.0,69620.0,0.014376]
[1770491195084,0.01280004,69654.0,69619.0,0.29098623]
[1770491195380,0.014368,69660.0,69622.0,0.014375]
[1770491195584,0.014368,69660.0,69636.0,0.014372]
[1770491196184,0.01280004,69661.0,69640.0,0.014372]
[1770491196574,0.01280004,69661.0,69621.0,0.014376]
[1770491196774,0.01280004,69661.0,69639.0,0.014372]
[1770491197377,0.014367,69666.0,69639.0,0.014372]
[1770491197580,0.01270313,69677.0,69630.0,0.071871]
[1770491197804,0.014359,69701.0,69630.0,0.071871]
[1770491197805,0.01270313,69672.0,69636.0,0.014372]
[1770491197976,0.01270313,69668.0,69636.0,0.014372]
[1770491198175,0.01270313,69661.0,69631.0,0.014373]
[1770491198679,0.01270313,69661.0,69621.0,0.11405308]
[1770491198985,0.01270313,69661.0,69622.0,0.32984885]
[1770491199180,0.01270313,69661.0,69622.0,0.11405308]
[1770491200275,0.01270313,69661.0,69631.0,0.014373]
[1770491200585,0.01270313,69661.0,69619.0,0.29098623]
[1770491200586,0.01266329,69659.0,69627.0,0.014374]
[1770491200982,0.014363,69683.0,69623.0,0.014375]
[1770491200983,0.01244146,69657.0,69623.0,0.014375]
[1770491201182,0.01244146,69641.0,69619.0,0.29098623]
[1770491201586,0.01244146,69636.0,69619.0,0.29098623]
[1770491202094,0.01244146,69636.0,69612.0,0.28509291]
[1770491202284,0.01244146,69636.0,69619.0,0.29094044]
[1770491202584,0.01244146,69636.0,69597.0,0.17112999]
[1770491202585,0.01252008,69626.0,69597.0,0.014381]
[1770491203380,0.01252008,69624.0,69597.0,0.014381]
[1770491204188,0.01252008,69631.0,69609.0,0.014378]
[1770491205299,0.014368,69656.0,69604.0,0.28466583]
[1770491205300,0.0125837,69623.0,69604.0,0.28466583]
[1770491205788,0.0125837,69632.0,69604.0,0.28706444]
[1770491205980,0.0125837,69632.0,69612.0,0.014377]
[1770491206790,0.0125837,69632.0,69608.0,0.014378]
[1770491207586,0.0125837,69632.0,69611.0,0.014378]
[1770491207785,0.0125837,69632.0,69605.0,0.11405308]
[1770491207786,0.0125837,69632.0,69607.0,0.014378]
[1770491207989,0.01254029,69630.0,69605.0,0.11405308]
[1770491208286,0.01254029,69627.0,69604.0,0.40111752]
[1770491208481,0.01254029,69627.0,69604.0,0.28706444]
[1770491209394,0.01437,69648.0,69604.0,0.28706444]
[1770491209395,0.01255099,69625.0,69604.0,0.28706444]
[1770491209583,0.014368,69656.0,69604.0,0.28706444]
[1770491209584,0.014373,69633.0,69608.0,0.014378]
[1770491209890,0.01255099,69632.0,69608.0,0.014378]
[1770491210591,0.02693413,69631.0,69608.0,0.014378]
[1770491210788,0.01437,69648.0,69608.0,0.014378]
[1770491210789,0.014374,69629.0,69608.0,0.014378]
[1770491211183,0.02693413,69629.0,69608.0,0.014378]
[1770491212191,0.014374,69627.0,69604.0,0.30144344]
[1770491212390,0.01256013,69626.0,69604.0,0.30144344]
[1770491213484,0.01256013,69626.0,69607.0,0.014378]
[1770491213682,0.02693883,69635.0,69604.0,0.28706444]
[1770491213883,0.01256583,69635.0,69607.0,0.11405308]
[1770491214082,0.01256583,69642.0,69622.0,0.014375]
[1770491214489,0.01256583,69642.0,69614.0,0.11405308]
[1770491214891,0.01256826,69650.0,69627.0,0.014374]
[1770491215194,0.01256826,69650.0,69630.0,0.014374]
[1770491215486,0.01256826,69650.0,69619.0,0.11405308]
[1770491215692,0.01256826,69650.0,69604.0,0.35896244]
[1770491215693,0.01256826,69650.0,69620.0,0.32988467]
[1770491215886,0.01437,69649.0,69623.0,0.014375]
[1770491216292,0.01256826,69650.0,69619.0,0.11405308]
[1770491216293,0.01256826,69650.0,69631.0,0.014374]
[1770491216798,0.01256826,69650.0,69627.0,0.014374]
[1770491217294,0.01256826,69650.0,69630.0,0.014374]
[1770491217889,0.01256826,69650.0,69633.0,0.014373]
[1770491218992,0.014369,69655.0,69633.0,0.014373]
[1770491219192,0.01256249,69657.0,69633.0,0.014373]
[1770491219386,0.01256249,69657.0,69637.0,0.014372]
[1770491220596,0.014367,69662.0,69640.0,0.014372]
[1770491220795,0.0125319,69656.0,69632.0,0.014373]
[1770491221100,0.0125319,69656.0,69610.0,0.42995498]
[1770491221101,0.0125319,69635.0,69609.0,0.014378]
[1770491221284,0.0125319,69635.0,69604.0,0.28706444]
[1770491221482,0.014369,69652.0,69604.0,0.30144344]
[1770491221483,0.014374,69632.0,69604.0,0.30144344]
[1770491221783,0.01251965,69627.0,69604.0,0.30144344]
[1770491221987,0.01251965,69627.0,69607.0,0.014378]
[1770491222189,0.01251965,69627.0,69604.0,0.28706444]
[1770491222387,0.014367,69661.0,69604.0,0.28706444]
[1770491222388,0.01251965,69638.0,69604.0,0.28706444]
[1770491222887,0.01243555,69633.0,69604.0,0.28706444]
[1770491223083,0.01243555,69627.0,69604.0,0.28706444]
[1770491223889,0.01243555,69627.0,69605.0,0.014379]
[1770491224797,0.014372,69640.0,69616.0,0.014377]
[1770491224996,0.014372,69640.0,69604.0,0.28706444]
[1770491225198,0.014373,69637.0,69604.0,0.28706444]
[1770491225494,0.014373,69637.0,69613.0,0.014377]
[1770491226393,0.01266044,69640.0,69613.0,0.014377]
[1770491227291,0.02714429,69646.0,69622.0,0.014375]
[1770491227497,0.014371,69644.0,69618.0,0.014376]
[1770491228297,0.01277287,69641.0,69618.0,0.014376]
[1770491229201,0.01277287,69641.0,69622.0,0.014375]
[1770491230592,0.014371,69646.0,69622.0,0.014375]
[1770491231405,0.0129738,69648.0,69622.0,0.014375]
[1770491231590,0.0129738,69648.0,69625.0,0.014375]
[1770491231789,0.0129738,69648.0,69624.0,0.11405308]
[1770491232198,0.0129738,69648.0,69629.0,0.014374]
[1770491233002,0.01300041,69655.0,69632.0,0.014373]
[1770491234005,0.01300041,69655.0,69635.0,0.014373]
[1770491235004,0.01300041,69655.0,69632.0,0.014373]
[1770491236406,0.01300052,69637.0,69620.0,0.11405308]
[1770491236604,0.01300052,69637.0,69611.0,0.11405308]
[1770491236806,0.01300052,69637.0,69610.0,0.11405308]
[1770491237106,0.01300052,69637.0,69609.0,0.11405308]
[1770491237307,0.01243292,69630.0,69604.0,0.28706444]
[1770491238006,0.01243292,69630.0,69609.0,0.014378]
[1770491239811,0.01243292,69630.0,69605.0,0.014379]
[1770491241311,0.01293083,69628.0,69600.0,0.01438]
[1770491241608,0.01293083,69626.0,69600.0,0.01438]
[1770491241806,0.01293083,69626.0,69597.0,0.28427573]
[1770491241807,0.01293362,69614.0,69597.0,0.28427573]
[1770491242013,0.01293362,69606.0,69582.0,0.014384]
[1770491242306,0.01293362,69603.0,69581.0,0.014384]
[1770491242506,0.01293362,69603.0,69584.0,0.014383]
[1770491243008,0.01293362,69603.0,69580.0,0.014384]
[1770491243908,0.01296467,69612.0,69592.0,0.014382]
[1770491244102,0.01296467,69619.0,69592.0,0.014382]
[1770491244300,0.01296467,69619.0,69594.0,0.014381]
[1770491244803,0.01296467,69619.0,69597.0,0.014381]
[1770491246112,0.01281491,69626.0,69588.0,0.28619793]
[1770491246409,0.01281491,69634.0,69593.0,0.11405308]
[1770491246715,0.02718791,69634.0,69596.0,0.11405308]
[1770491247210,0.02718791,69634.0,69608.0,0.014378]
[1770491247405,0.02721495,69641.0,69614.0,0.014377]
[1770491247801,0.01284295,69641.0,69621.0,0.014376]
[1770491248006,0.01437,69650.0,69622.0,0.014375]
[1770491248308,0.02721387,69648.0,69622.0,0.014375]
[1770491249613,0.02728627,69645.0,69618.0,0.014376]
[1770491249809,0.01291527,69653.0,69614.0,0.11405308]
[1770491250018,0.01291527,69653.0,69615.0,0.32989156]
[1770491250317,0.01291527,69653.0,69615.0,0.11405308]
[1770491251415,0.01437,69651.0,69623.0,0.014375]
[1770491251616,0.02712736,69651.0,69623.0,0.014375]
[1770491251817,0.01275736,69651.0,69630.0,0.014374]
[1770491252019,0.014361,69691.0,69615.0,0.11405308]
[1770491252020,0.01275736,69659.0,69635.0,0.014373]
[1770491252713,0.01275736,69659.0,69639.0,0.014372]
[1770491253508,0.014367,69665.0,69642.0,0.014371]
[1770491253919,0.0127166,69667.0,69642.0,0.014371]
[1770491254523,0.02708165,69666.0,69642.0,0.014371]
[1770491255009,0.01208733,69665.0,69642.0,0.014371]
[1770491259214,0.01208733,69665.0,69614.0,0.071887]
[1770491259215,0.02654298,69640.0,69617.0,0.014376]
[1770491259409,0.01217098,69654.0,69630.0,0.014374]
[1770491260511,0.014368,69660.0,69633.0,0.014373]
[1770491260713,0.02652861,69660.0,69633.0,0.014373]
[1770491261209,0.02652861,69660.0,69636.0,0.014372]
[1770491261408,0.014368,69657.0,69617.0,0.11419982]
[1770491261608,0.014368,69657.0,69632.0,0.014373]
[1770491261812,0.02652861,69660.0,69635.0,0.014373]
[1770491262014,0.02652861,69660.0,69637.0,0.014372]
[1770491262412,0.02652861,69660.0,69636.0,0.014373]
[1770491263407,0.01216061,69660.0,69624.0,0.014375]
[1770491263607,0.01216061,69660.0,69620.0,0.11419982]
[1770491263815,0.01216061,69660.0,69636.0,0.014372]
[1770491264825,0.014367,69663.0,69639.0,0.014372]
[1770491265622,0.014368,69661.0,69639.0,0.014372]
[1770491266015,0.01176127,69663.0,69625.0,0.014375]
[1770491266221,0.01176127,69663.0,69640.0,0.014372]
[1770491266526,0.01176127,69663.0,69642.0,0.014371]
[1770491266730,0.01264615,69670.0,69645.0,0.014371]
[1770491267226,0.014365,69672.0,69648.0,0.01437]
[1770491267422,0.01264615,69675.0,69648.0,0.01437]
[1770491267624,0.014365,69674.0,69648.0,0.01437]
[1770491267921,0.01264495,69687.0,69659.0,0.014368]
[1770491268230,0.01264495,69680.0,69663.0,0.29315755]
[1770491268729,0.02604817,69679.0,69663.0,0.29315755]
[1770491268929,0.01168417,69678.0,69663.0,0.29315755]
[1770491269829,0.01167507,69676.0,69654.0,0.014369]
[1770491270130,0.01167507,69674.0,69647.0,0.01437]
[1770491270525,0.01167507,69671.0,69650.0,0.01437]
[1770491271026,0.01167507,69671.0,69646.0,0.01750859]
[1770491271226,0.0108251,69669.0,69647.0,0.00313859]
[1770491271622,0.0108251,69667.0,69644.0,0.28717466]
[1770491271822,0.0108251,69667.0,69642.0,0.014371]
[1770491272432,0.0108251,69667.0,69648.0,0.00319013]
[1770491272732,0.0108251,69667.0,69647.0,0.01437]
[1770491274131,0.0108251,69667.0,69648.0,0.00173629]
[1770491274333,0.0254529,69672.0,69648.0,0.00173629]
[1770491275332,0.02630071,69670.0,69648.0,0.00173629]
[1770491275630,0.01192846,69669.0,69648.0,0.00173629]
[1770491277534,0.01174195,69667.0,69648.0,0.00173629]
[1770491278637,0.01152245,69656.0,69637.0,0.28145645]
[1770491278827,0.01152245,69654.0,69627.0,0.11419982]
[1770491279027,0.01152245,69654.0,69625.0,0.11463246]
[1770491279336,0.014366,69670.0,69631.0,0.014374]
[1770491279337,0.01152245,69652.0,69631.0,0.014374]
[1770491279836,0.01152245,69652.0,69633.0,0.01483148]
[1770491280136,0.0108251,69662.0,69642.0,0.014371]
[1770491280337,0.0108251,69662.0,69641.0,0.01072421]
[1770491280729,0.0108251,69662.0,69642.0,0.014371]
[1770491280930,0.0108251,69662.0,69644.0,0.014371]
[1770491281232,0.0251911,69669.0,69644.0,0.02395749]
[1770491281427,0.014367,69664.0,69645.0,0.00958649]
[1770491282928,0.0251911,69668.0,69645.0,0.00958649]
[1770491283128,0.014366,69666.0,69645.0,0.00958649]
[1770491283331,0.0108251,69667.0,69645.0,0.00958649]
[1770491283630,0.0251911,69667.0,69645.0,0.00958649]
[1770491284234,0.0108251,69667.0,69647.0,0.01072421]
[1770491285834,0.014366,69666.0,69647.0,0.01072421]
[1770491293941,0.02541868,69666.0,69647.0,0.01072421]
[1770491295039,0.01105268,69641.0,69620.0,0.29282119]
[1770491295642,0.014372,69640.0,69620.0,0.29282119]
[1770491295843,0.01105268,69641.0,69622.0,0.01138956]
[1770491296035,0.02542268,69648.0,69625.0,0.02576456]
[1770491296234,0.01105268,69647.0,69626.0,0.01138956]
[1770491303746,0.014371,69645.0,69626.0,0.01138956]
[1770491304248,0.02542368,69645.0,69626.0,0.01138956]
[1770491304443,0.01105268,69645.0,69626.0,0.02576456]
[1770491304643,0.01105268,69668.0,69639.0,0.014372]
[1770491304946,0.014365,69675.0,69639.0,0.014372]
[1770491304947,0.01105268,69658.0,69639.0,0.02576156]
[1770491305147,0.01105268,69653.0,69624.0,0.2832327]
[1770491305350,0.01105268,69643.0,69624.0,0.2976077]
[1770491305652,0.01105268,69626.0,69608.0,0.01138956]
[1770491305946,0.02542868,69621.0,69597.0,0.01138956]
[1770491306146,0.02542868,69621.0,69606.0,0.28281763]
[1770491306446,0.01105268,69642.0,69609.0,0.01138956]
[1770491306641,0.02542568,69635.0,69613.0,0.01138956]
[1770491306842,0.01105268,69632.0,69613.0,0.01138956]
[1770491307943,0.01105268,69630.0,69606.0,0.01138956]
[1770491308248,0.014374,69629.0,69606.0,0.29940274]
[1770491308448,0.01105268,69626.0,69606.0,0.29940274]
[1770491308845,0.014375,69625.0,69606.0,0.29940274]
[1770491309052,0.01105268,69624.0,69606.0,0.29940274]
[1770491309244,0.01105268,69624.0,69606.0,0.28801318]
[1770491309840,0.014375,69623.0,69599.0,0.31827607]
[1770491310146,0.01105268,69622.0,69599.0,0.31827607]
[1770491310953,0.01105268,69622.0,69599.0,0.30389607]
[1770491313253,0.01105268,69622.0,69600.0,0.01138956]
[1770491313948,0.01105268,69618.0,69600.0,0.01138956]
[1770491314149,0.01105268,69618.0,69599.0,0.29250651]
[1770491314555,0.01105268,69616.0,69593.0,0.01138956]
[1770491315253,0.01105268,69614.0,69593.0,0.01138956]
[1770491316646,0.01105268,69614.0,69593.0,0.29509353]
[1770491317053,0.01105268,69614.0,69594.0,0.01149177]
[1770491318059,0.01165899,69621.0,69598.0,0.01149177]
[1770491318759,0.02603499,69621.0,69598.0,0.01149177]
[1770491320460,0.01165899,69621.0,69601.0,0.01149177]
[1770491320955,0.01165899,69628.0,69605.0,0.01149177]
[1770491321462,0.014375,69627.0,69605.0,0.01149177]
[1770491322264,0.01165899,69624.0,69605.0,0.01149177]
[1770491322959,0.01165899,69617.0,69595.0,0.01149177]
[1770491326663,0.01165899,69626.0,69599.0,0.01149177]
[1770491327558,0.01165899,69621.0,69599.0,0.01149177]
[1770491327762,0.01165899,69618.0,69594.0,0.01149177]